bitfinex-derivatives/quotes_SOLF0:USTF0_20250518
["timestamp","ask_amount","ask_price","bid_price","bid_amount"]
[1747603663782,5.9322,168.49,168.46,63.46]
[1747603665579,5.9322,168.49,168.46,69.3931]
[1747603666485,5.9319,168.5,168.47,5.9329]
[1747603667288,5.9322,168.49,168.46,69.3931]
[1747603669886,5.932,168.5,168.46,69.3931]
[1747603670584,5.932,168.5,168.47,5.9329]
[1747603674487,2.0102,168.52,168.46,69.89595404]
[1747603674788,9.61779391,168.54,168.46,69.89595404]
[1747603674989,5.931,168.53,168.49,5.9319]
[1747603675189,5.931,168.53,168.46,69.89595404]
[1747603676490,5.931,168.53,168.49,5.932]
[1747603677286,5.931,168.53,168.46,69.89595404]
[1747603677482,5.9311,168.52,168.46,69.89595404]
[1747603678589,5.9311,168.52,168.49,5.9319]
[1747603678990,6.43595404,168.52,168.46,63.46]
[1747603679891,5.9321,168.5,168.47,5.9329]
[1747603680689,4.0716,168.54,168.46,63.46]
[1747603680989,6.43595404,168.52,168.46,63.46]
[1747603681190,69.65595404,168.52,168.46,63.46]
[1747603681488,6.43595404,168.5,168.43,63.28]
[1747603681789,5.9338,168.45,168.43,63.28]
[1747603682894,6.43595404,168.5,168.43,63.28]
[1747603683190,69.63595404,168.5,168.43,63.28]
[1747603683591,5.9326,168.48,168.44,5.9339]
[1747603683786,5.9326,168.48,168.43,63.28]
[1747603684089,5.9326,168.48,168.45,5.9336]
[1747603684892,5.933,168.47,168.44,5.9339]
[1747603685088,6.43595404,168.48,168.43,63.28]
[1747603685990,5.9331,168.47,168.44,5.9337]
[1747603696009,5.9333,168.46,168.43,69.2142]
[1747603696503,5.933,168.47,168.44,5.9339]
[1747603696708,1.9938,168.48,168.43,63.28]
[1747603697308,5.933,168.47,168.44,5.9338]
[1747603699408,1.9938,168.48,168.43,69.2141]
[1747603699409,5.9333,168.46,168.43,69.2141]
[1747603704912,5.9333,168.46,168.44,5.9339]
[1747603705412,1.9938,168.48,168.43,63.28]
[1747603706213,7.9265,168.48,168.45,5.9335]
[1747603707512,5.9336,168.45,168.43,69.2143]
[1747603708315,5.9334,168.46,168.43,69.2143]
[1747603709111,5.9334,168.46,168.43,63.28]
[1747603709613,63.2,168.5,168.43,63.28]
[1747603709809,6.43595404,168.49,168.43,63.28]
[1747603710008,5.9335,168.46,168.43,63.28]
[1747603710415,6.43595404,168.49,168.43,63.28]
[1747603713806,6.43595404,168.46,168.4,63.12]
[1747603714507,69.47595404,168.46,168.4,63.12]
[1747603714710,5.9348,168.42,168.4,63.12]
[1747603714905,69.47595404,168.46,168.4,63.12]
[1747603715313,5.935,168.41,168.4,63.12]
[1747603715712,69.47595404,168.46,168.38,183.33154987]
[1747603716015,5.9356,168.4,168.38,183.33154987]
[1747603716419,5.9357,168.39,168.38,183.33154987]
[1747603717410,5.9365,168.37,168.34,69.0575]
[1747603717611,6.43595404,168.41,168.34,69.0575]
[1747603717810,6.43595404,168.41,168.34,63.12]
[1747603718716,5.9356,168.4,168.34,63.12]
[1747603719117,5.9358,168.39,168.34,63.12]
[1747603720222,8.31525404,168.41,168.34,63.12]
[1747603721420,5.9359,168.39,168.36,5.9368]
[1747603722221,5.9363,168.38,168.35,5.937]
[1747603722822,12.37175404,168.39,168.35,5.937]
[1747603723123,6.43595404,168.39,168.35,5.937]
[1747603723722,12.37175404,168.39,168.36,5.9367]
[1747603730621,5.9361,168.38,168.36,5.9367]
[1747603732425,5.9361,168.38,168.35,5.937]
[1747603733128,12.37175404,168.39,168.36,5.9367]
[1747603734429,5.9354,168.4,168.37,5.9363]
[1747603734629,73.18495404,168.41,168.34,63.12]
[1747603735032,73.18495404,168.41,168.37,5.9364]
[1747603735635,5.9357,168.4,168.37,5.9364]
[1747603736235,5.9357,168.39,168.37,5.9364]
[1747603738633,5.9357,168.39,168.35,5.937]
[1747603740437,5.9362,168.38,168.35,5.937]
[1747603742240,5.9364,168.37,168.35,5.937]
[1747603743543,5.9362,168.38,168.35,5.937]
[1747603747944,5.936,168.39,168.34,63.12]
[1747603749344,5.936,168.39,168.36,5.9366]
[1747603749645,5.936,168.39,168.34,63.12]
[1747603750546,5.936,168.39,168.37,5.9364]
[1747603750746,5.9355,168.4,168.37,5.9364]
[1747603752946,5.9357,168.39,168.36,5.9366]
[1747603753247,8.31525404,168.41,168.34,63.12]
[1747603754148,6.43595404,168.42,168.34,63.12]
[1747603754444,6.43595404,168.42,168.35,62.84]
[1747603755545,12.37095404,168.42,168.39,5.9357]
[1747603757242,5.935,168.42,168.39,5.9357]
[1747603758049,6.43595404,168.44,168.38,62.8]
[1747603759141,17.7908,168.55,168.38,62.8]
[1747603759343,6.43595404,168.45,168.38,62.8]
[1747603759651,5.9342,168.44,168.41,5.9349]
[1747603760244,12.36975404,168.45,168.41,5.9347]
[1747603761046,5.934,168.44,168.41,5.9347]
[1747603761550,5.9338,168.45,168.41,5.9347]
[1747603764352,5.934,168.44,168.41,5.9347]
[1747603765646,5.9334,168.46,168.42,62.8]
[1747603766351,6.43595404,168.48,168.44,5.9338]
[1747603767552,5.9329,168.47,168.44,5.9338]
[1747603770656,5.9326,168.48,168.45,5.9335]
[1747603773159,5.9326,168.48,168.44,5.9337]
[1747603775568,5.9331,168.47,168.44,5.9337]
[1747603775760,5.9331,168.47,168.43,5.9342]
[1747603776969,5.9331,168.47,168.44,5.9339]
[1747603777171,8.37845404,168.49,168.44,5.9339]
[1747603778472,5.9326,168.48,168.44,5.9339]
[1747603782575,5.9326,168.48,168.45,5.9336]
[1747603783681,7.8748,168.49,168.45,5.9336]
[1747603785386,7.8748,168.49,168.46,5.9332]
[1747603785884,7.8748,168.49,168.45,5.9335]
[1747603787082,6.43595404,168.48,168.43,5.934]
[1747603788586,5.9333,168.46,168.43,5.934]
[1747603789980,5.933,168.47,168.43,5.934]
[1747603790179,6.43595404,168.48,168.43,5.934]
[1747603790384,1.9425,168.49,168.43,5.934]
[1747603790681,1.9425,168.49,168.44,5.9339]
[1747603790888,8.37845404,168.49,168.44,5.9339]
[1747603791389,1.9425,168.49,168.44,5.9339]
[1747603791592,5.9329,168.47,168.43,5.9342]
[1747603792588,5.9326,168.48,168.44,5.9339]
[1747603792882,5.9326,168.48,168.42,62.8]
[1747603793080,5.9326,168.48,168.43,5.9342]
[1747603794091,5.9326,168.48,168.42,62.8]
[1747603794092,14.31075404,168.49,168.44,5.9338]
[1747603794687,7.8748,168.49,168.44,5.9338]
[1747603794890,14.31075404,168.49,168.44,5.9338]
[1747603795793,5.9325,168.48,168.44,5.9338]
[1747603796987,14.31065404,168.49,168.44,5.9338]
[1747603797787,5.9325,168.48,168.44,5.9338]
[1747603801796,5.9325,168.48,168.45,5.9336]
[1747603802688,5.9325,168.48,168.42,62.8]
[1747603803583,1.9425,168.49,168.42,62.8]
[1747603803584,7.8748,168.49,168.42,62.8]
[1747603803793,14.31075404,168.49,168.44,5.9339]
[1747603803995,8.37845404,168.49,168.44,5.9339]
[1747603804181,5.9326,168.48,168.44,5.9339]
[1747603804385,8.37845404,168.49,168.45,5.9336]
[1747603804687,14.31085404,168.49,168.45,5.9336]
[1747603806086,8.37845404,168.49,168.46,5.9331]
[1747603806293,1.9425,168.49,168.46,62.62]
[1747603806997,1.9425,168.49,168.46,68.5532]
[1747603807593,1.9425,168.49,168.46,62.62]
[1747603807993,5.54619391,168.52,168.46,62.62]
[1747603808294,11.98214795,168.52,168.46,62.62]
[1747603809694,17.91334795,168.52,168.48,5.9324]
[1747603810097,12.36715404,168.52,168.48,5.9324]
[1747603812293,5.9312,168.52,168.48,5.9324]
[1747603812492,6.43595404,168.52,168.46,62.62]
[1747603813294,12.36715404,168.52,168.48,5.9322]
[1747603813495,12.36715404,168.52,168.46,62.62]
[1747603813695,12.36715404,168.52,168.49,5.9321]
[1747603813897,6.43595404,168.52,168.49,5.9321]
[1747603814396,5.9309,168.53,168.49,5.9321]
[1747603814596,6.43595404,168.52,168.49,5.9321]
[1747603814896,12.36715404,168.52,168.49,5.9321]
[1747603821199,12.36715404,168.52,168.48,5.9324]
[1747603823696,5.9312,168.52,168.48,5.9324]
[1747603823897,12.36715404,168.52,168.48,5.9324]
[1747603826701,5.9312,168.52,168.48,5.9324]
[1747603830207,6.43595404,168.51,168.47,5.9328]
[1747603830906,12.36765404,168.51,168.47,5.9328]
[1747603831108,5.54619391,168.54,168.48,6.43595404]
[1747603831307,5.54619391,168.54,168.48,71.63595404]
[1747603832006,5.54619391,168.54,168.52,5.9311]
[1747603834210,17.32812521,168.56,168.52,5.9311]
[1747603834508,6.43595404,168.55,168.52,5.9311]
[1747603836713,9.9332,168.56,168.52,5.9311]
[1747603837713,16.36915404,168.56,168.52,5.9311]
[1747603841027,5.54619391,168.6,168.53,69.62]
[1747603841318,5.54619391,168.6,168.54,6.43595404]
[1747603841910,5.53415259,168.64,168.58,6.43595404]
[1747603842116,5.53415259,168.64,168.62,5.9276]
[1747603842415,5.53415259,168.64,168.59,69.54]
[1747603842605,5.53415259,168.64,168.63,5.9273]
[1747603844019,5.53415259,168.64,168.61,5.9276]
[1747603844319,5.53415259,168.64,168.59,69.54]
[1747603844513,5.53415259,168.64,168.62,5.9275]
[1747603846428,13.32082521,168.67,168.61,190.20913956]
[1747603846429,5.9259,168.67,168.61,190.20913956]
[1747603846927,5.9259,168.67,168.62,5.9276]
[1747603847625,5.9263,168.66,168.61,190.20913956]
[1747603848835,5.9263,168.66,168.62,5.9275]
[1747603849220,5.9259,168.67,168.62,5.9275]
[1747603852027,5.9262,168.66,168.62,5.9275]
[1747603853027,5.9259,168.67,168.62,5.9275]
[1747603854334,5.9259,168.67,168.61,184.28123956]
[1747603854335,5.9259,168.67,168.63,5.927]
[1747603854527,5.9259,168.67,168.64,69.5]
[1747603856530,5.9256,168.68,168.64,75.4268]
[1747603857030,5.9259,168.67,168.64,69.5]
[1747603858633,5.9259,168.67,168.64,75.4269]
[1747603859627,5.9256,168.68,168.64,75.4269]
[1747603865039,10.14415246,168.73,168.67,6.41835246]
[1747603865630,3.7258,168.73,168.67,6.41835246]
[1747603865931,9.6498,168.73,168.69,5.9249]
[1747603866130,9.6498,168.73,168.69,69.48]
[1747603866431,5.9241,168.72,168.69,69.48]
[1747603866834,3.7258,168.73,168.69,69.48]
[1747603867036,3.7258,168.73,168.7,5.9247]
[1747603867231,1.8627,168.73,168.7,5.9247]
[1747603867538,1.8627,168.73,168.69,69.48]
[1747603867539,1.8627,168.73,168.69,75.89835246]
[1747603868542,1.8627,168.73,168.7,5.9245]
[1747603868734,5.9237,168.74,168.7,5.9245]
[1747603868932,6.41835246,168.76,168.69,75.89835246]
[1747603869340,6.41835246,168.76,168.71,5.9242]
[1747603869539,5.923,168.76,168.69,75.89835246]
[1747603870642,5.923,168.76,168.72,5.924]
[1747603871742,5.9231,168.75,168.71,5.9244]
[1747603872236,3.9306,168.77,168.69,75.89835246]
[1747603872432,5.9232,168.75,168.69,75.89835246]
[1747603872938,5.9221,168.78,168.69,75.89835246]
[1747603873137,1.9818,168.79,168.71,6.41835246]
[1747603873641,1.9818,168.79,168.76,5.9226]
[1747603873842,1.9818,168.79,168.77,70.28]
[1747603874036,1.9636,168.81,168.78,70.28]
[1747603874237,1.9636,168.81,168.78,76.2017]
[1747603874637,5.9209,168.82,168.78,76.2017]
[1747603874942,1.9486,168.84,168.79,71.2]
[1747603875240,1.9486,168.84,168.79,77.61835246]
[1747603875436,1.9486,168.84,168.81,5.9207]
[1747603875833,3.9944,168.86,168.82,5.9205]
[1747603876040,3.9944,168.86,168.79,71.2]
[1747603876236,1.8795,168.89,168.83,70.26]
[1747603876442,1.8795,168.89,168.83,76.1799]
[1747603876636,1.8795,168.89,168.83,70.26]
[1747603877342,1.8795,168.89,168.84,71.12]
[1747603877643,1.8795,168.89,168.85,5.9193]
[1747603878547,7.7977,168.89,168.84,77.0398]
[1747603879940,3.97037275,168.9,168.84,71.12]
[1747603879941,9.88827275,168.9,168.84,71.12]
[1747603880446,9.88827275,168.9,168.85,5.9194]
[1747603882451,3.97037275,168.9,168.84,71.12]
[1747603882950,5.9182,168.89,168.84,77.0398]
[1747603883150,3.97037275,168.9,168.84,77.0398]
[1747603883351,3.97037275,168.9,168.85,5.0]
[1747603884256,5.9186,168.88,168.85,5.0]
[1747603884458,3.97037275,168.9,168.85,5.0]
[1747603885157,3.97037275,168.9,168.87,5.9186]
[1747603887453,3.97037275,168.9,168.85,5.0]
[1747603888653,3.97037275,168.9,168.87,5.9187]
[1747603888858,3.97037275,168.9,168.88,70.22]
[1747603889554,3.97037275,168.9,168.87,5.9188]
[1747603889747,3.97037275,168.9,168.87,70.2]
[1747603890155,3.97037275,168.9,168.87,76.1187]
[1747603891547,3.97037275,168.9,168.87,70.2]
[1747603891950,3.97037275,168.9,168.88,5.9185]
[1747603892350,3.97037275,168.9,168.87,70.2]
[1747603892554,3.97037275,168.9,168.88,5.9185]
[1747603893158,3.97037275,168.9,168.87,146.7987]
[1747603893758,3.97037275,168.9,168.87,140.88]
[1747603894453,3.97037275,168.9,168.88,5.9182]
[1747603896056,3.97037275,168.9,168.88,5.9185]
[1747603896860,3.97037275,168.9,168.89,5.9181]
[1747603901060,9.88817275,168.9,168.87,140.88]
[1747603901253,3.97037275,168.9,168.87,70.2]
[1747603901655,3.97037275,168.9,168.88,5.9184]
[1747603902667,3.97037275,168.9,168.87,76.1187]
[1747603903057,3.97037275,168.9,168.87,70.2]
[1747603903260,3.97037275,168.9,168.88,5.9182]
[1747603903859,3.97037275,168.9,168.89,5.9181]
[1747603910070,3.97037275,168.9,168.85,5.0]
[1747603911272,5.9191,168.87,168.85,5.0]
[1747603911466,3.97037275,168.9,168.85,5.0]
[1747603912269,5.9191,168.87,168.85,5.0]
[1747603915278,5.9192,168.86,168.85,5.0]
[1747603916376,5.919,168.87,168.85,5.0]
[1747603917074,5.9185,168.88,168.85,10.9195]
[1747603917373,5.92047275,168.9,168.85,5.0]
[1747603918366,5.9188,168.88,168.85,5.0]
[1747603918768,5.92047275,168.9,168.85,5.0]
[1747603920776,5.9191,168.87,168.85,5.0]
[1747603921177,5.92047275,168.9,168.85,5.0]
[1747603921878,5.9188,168.88,168.85,5.0]
[1747603922175,5.92047275,168.9,168.85,5.0]
[1747603922572,5.9182,168.89,168.86,5.9189]
[1747603923076,11.83837275,168.9,168.86,5.9189]
[1747603923277,3.97037275,168.9,168.89,5.9181]
[1747603939408,3.97037275,168.9,168.88,75.9784]
[1747603940312,3.97037275,168.9,168.89,5.9181]
[1747603951924,7.275e-05,168.9,168.89,5.9181]
[1747603964033,7.275e-05,168.9,168.89,72.2581]
[1747603964228,7.275e-05,168.9,168.89,5.9181]
[1747603964433,7.275e-05,168.9,168.88,75.9784]
[1747603965736,7.275e-05,168.9,168.89,5.9181]
[1747603972439,7.275e-05,168.9,168.88,75.9784]
[1747603972640,7.275e-05,168.9,168.88,70.06]
[1747603974045,5.91797275,168.9,168.88,70.06]
[1747603974537,5.9181,168.89,168.88,70.06]
[1747603974733,7.275e-05,168.9,168.88,70.06]
[1747603975237,5.91787275,168.9,168.88,70.06]
[1747603975545,7.275e-05,168.9,168.88,70.06]
[1747603976244,7.275e-05,168.9,168.85,5.0]
[1747603976946,5.91817275,168.9,168.86,5.9189]
[1747603977144,7.275e-05,168.9,168.85,5.0]
[1747603977549,7.275e-05,168.9,168.86,5.9191]
[1747603977738,131.8,168.89,168.77,73.5214712]
[1747603978243,65.54,168.89,168.8,65.52]
[1747603978441,65.54,168.89,168.82,5.9203]
[1747603978645,65.54,168.89,168.83,66.26]
[1747603979146,5.9193,168.86,168.83,66.26]
[1747603979449,65.54,168.89,168.83,66.26]
[1747603980446,5.9199,168.85,168.83,66.26]
[1747603980643,65.54,168.89,168.83,66.26]
[1747603981241,5.9199,168.85,168.83,66.26]
[1747603981440,65.54,168.89,168.83,66.26]
[1747603982550,5.9199,168.84,168.83,66.26]
[1747603983035,131.8,168.89,168.79,131.46]
[1747603983238,10.00916667,168.88,168.79,131.46]
[1747603983438,10.00916667,168.88,168.79,66.26]
[1747603983652,1.912,168.87,168.79,66.26]
[1747603984846,10.00916667,168.85,168.74,66.26]
[1747603985243,5.921,168.81,168.74,66.26]
[1747603985645,72.3306,168.84,168.74,66.26]
[1747603985842,72.3306,168.84,168.74,66.28]
[1747603985843,10.00916667,168.82,168.74,66.28]
[1747603986047,2.0212,168.81,168.74,66.28]
[1747603987046,5.922,168.78,168.74,66.28]
[1747603987242,2.0212,168.81,168.74,66.28]
[1747603987448,2.0212,168.81,168.7,69.0]
[1747603987650,10.00916667,168.79,168.7,69.0]
[1747603987951,71.0535,168.78,168.69,5.40984931]
[1747603988354,10.00916667,168.76,168.69,5.40984931]
[1747603988844,69.0,168.75,168.66,69.0]
[1747603989252,69.0,168.75,168.62,74.9276]
[1747603989454,10.00916667,168.73,168.62,69.0]
[1747603989656,1.9639,168.72,168.62,69.0]
[1747603989851,1.9639,168.72,168.62,74.9276]
[1747603989852,5.9256,168.68,168.62,74.9276]
[1747603990252,5.9256,168.68,168.62,69.0]
[1747603990544,5.9259,168.67,168.61,5.928]
[1747603990742,79.00916667,168.7,168.59,5.39834082]
[1747603990939,79.00916667,168.7,168.59,11.32684082]
[1747603991140,5.9266,168.65,168.59,11.32684082]
[1747603991348,70.12,168.66,168.59,11.32684082]
[1747603991552,1.9639,168.64,168.59,5.39834082]
[1747603991752,7.8911,168.64,168.59,5.39834082]
[1747603991951,1.9639,168.64,168.59,5.39834082]
[1747603992153,11.97306667,168.64,168.59,5.39834082]
[1747603992354,11.97306667,168.64,168.56,7.2614712]
[1747603992655,11.97306667,168.64,168.53,5.9308]
[1747603992860,11.97306667,168.64,168.52,581.75734668]
[1747603993047,10.00916667,168.61,168.52,581.75734668]
[1747603993355,5.9298,168.56,168.52,69.02]
[1747603993760,10.00916667,168.58,168.46,2.0041]
[1747603994052,1.8868,168.55,168.46,2.0041]
[1747603994243,72.9868,168.55,168.4,11.88266667]
[1747603994446,10.05285754,168.54,168.32,2.0041]
[1747603994648,10.0555203,168.51,168.36,140.18]
[1747603994844,140.34,168.5,168.41,5.935]
[1747603995047,150.39472246,168.5,168.38,78.5414712]
[1747603995249,10.05935729,168.46,168.38,7.2614712]
[1747603995453,5.9343,168.43,168.38,7.2614712]
[1747603995657,142.425,168.45,168.38,7.2614712]
[1747603996047,5.9347,168.42,168.38,7.2614712]
[1747603996246,142.425,168.45,168.38,7.2614712]
[1747603996444,5.9343,168.43,168.38,7.2614712]
[1747603996751,2.005,168.45,168.38,7.2614712]
[1747603997662,5.9341,168.44,168.33,71.38]
[1747603998154,2.005,168.45,168.33,71.38]
[1747603998756,7.9387,168.45,168.39,5.9354]
[1747603999953,5.9345,168.43,168.37,5.9361]
[1747604000257,2.005,168.45,168.32,71.0641]
[1747604000454,5.9347,168.42,168.37,5.9364]
[1747604000655,2.005,168.45,168.32,71.0641]
[1747604000961,2.005,168.45,168.32,143.7641]
[1747604001456,2.0503,168.44,168.32,144.0041]
[1747604001655,2.0503,168.44,168.34,5.9373]
[1747604002865,5.9357,168.4,168.34,5.9373]
[1747604003359,2.0503,168.44,168.34,5.9373]
[1747604003751,2.0503,168.44,168.32,71.0641]
[1747604004160,2.005,168.45,168.32,77.0019]
[1747604004457,5.9328,168.48,168.33,16.10057859]
[1747604004652,1.8781,168.52,168.34,73.94]
[1747604004849,1.18687318,168.51,168.34,73.94]
[1747604005358,1.18687318,168.51,168.45,5.9335]
[1747604006056,5.9321,168.5,168.45,5.9335]
[1747604006248,1.18701406,168.49,168.45,5.9335]
[1747604006452,1.18701406,168.49,168.46,5.9329]
[1747604007161,1.18701406,168.49,168.42,2.0344]
[1747604008153,5.933,168.47,168.42,2.0344]
[1747604009560,1.8781,168.52,168.42,2.0344]
[1747604009561,5.9336,168.45,168.42,2.0344]
[1747604009861,146.2,168.49,168.41,71.96]
[1747604010062,146.2,168.49,168.37,146.24]
[1747604010259,146.2,168.49,168.37,71.96]
[1747604010650,5.9356,168.4,168.37,71.96]
[1747604010958,149.14,168.44,168.33,5.9378]
[1747604011163,76.7038,168.43,168.29,512.0]
[1747604011365,76.7038,168.43,168.3,5.9388]
[1747604011559,5.9371,168.36,168.3,7.8255]
[1747604011864,76.7038,168.43,168.3,1.8867]
[1747604012863,5.9374,168.35,168.3,1.8867]
[1747604013267,76.7038,168.43,168.3,1.8867]
[1747604013466,92.80350862,168.43,168.3,1.8867]
[1747604013656,76.7038,168.43,168.3,1.8867]
[1747604013858,5.9372,168.35,168.3,1.8867]
[1747604014562,76.22,168.39,168.3,1.8867]
[1747604014563,5.9375,168.34,168.3,1.8867]
[1747604015266,76.22,168.39,168.3,1.8867]
[1747604015666,74.84,168.38,168.3,1.8867]
[1747604015961,5.9378,168.34,168.3,1.8867]
[1747604016468,74.84,168.38,168.3,1.8867]
[1747604017366,5.9381,168.33,168.3,1.8867]
[1747604017664,74.84,168.38,168.3,1.8867]
[1747604017867,74.84,168.38,168.28,74.82]
[1747604018062,5.939,168.3,168.28,74.82]
[1747604018266,5.939,168.3,168.25,1.9856]
[1747604018562,74.84,168.38,168.25,1.9856]
[1747604018761,5.9393,168.29,168.25,1.9856]
[1747604018964,5.9393,168.29,168.24,74.84]
[1747604019166,76.52,168.34,168.24,82.6948]
[1747604019367,74.86,168.33,168.24,76.754]
[1747604019857,74.86,168.33,168.18,151.34]
[1747604020163,5.9406,168.26,168.21,5.9417]
[1747604020366,74.86,168.28,168.18,74.86]
[1747604021068,5.9413,168.24,168.19,5.9426]
[1747604021767,5.9413,168.24,168.2,5.9423]
[1747604022261,74.86,168.28,168.19,5.9427]
[1747604022461,74.86,168.28,168.18,74.86]
[1747604022861,5.9418,168.22,168.18,80.8031]
[1747604023068,74.86,168.28,168.18,74.86]
[1747604024465,74.86,168.28,168.17,3.9158]
[1747604024774,74.86,168.28,168.17,5.9434]
[1747604025375,5.9414,168.23,168.17,5.9434]
[1747604025570,76.82,168.24,168.18,5.943]
[1747604025771,76.82,168.24,168.15,1.8939]
[1747604026074,82.761,168.24,168.18,5.943]
[1747604026264,82.761,168.24,168.15,1.8939]
[1747604026463,76.82,168.24,168.15,1.8939]
[1747604026667,82.7611,168.24,168.19,5.9425]
[1747604027374,82.7611,168.24,168.2,5.9424]
[1747604027875,16.09970862,168.21,168.14,2.8468]
[1747604028080,16.09970862,168.15,167.83,23.36117982]
[1747604028373,5.947,168.07,167.95,3.9387]
[1747604028573,152.02,168.09,167.95,74.9]
[1747604028777,77.12,168.09,167.96,5.7788]
[1747604028970,77.12,168.09,167.96,82.7988]
[1747604029174,78.9644,168.2,167.96,82.7988]
[1747604029371,78.9644,168.2,167.99,16.09970862]
[1747604029575,78.9644,168.2,168.0,588.2]
[1747604029774,78.9644,168.2,168.01,77.02]
[1747604029975,5.9449,168.14,168.01,77.02]
[1747604030277,77.04,168.15,168.01,77.02]
[1747604030479,5.946,168.1,168.02,5.9486]
[1747604030774,77.04,168.15,168.02,5.9486]
[1747604030973,93.13970862,168.15,168.0,588.2]
[1747604031179,93.13970862,168.15,168.0,665.24]
[1747604031572,5.9477,168.06,168.0,665.24]
[1747604032680,5.9478,168.05,168.0,588.2]
[1747604032888,5.9478,168.05,168.0,665.14]
[1747604033379,76.86,168.1,168.0,588.2]
[1747604034185,5.9491,168.01,168.0,74.9]
[1747604034378,74.94,168.09,167.96,80.7188]
[1747604034677,16.09970862,168.08,167.96,80.7188]
[1747604034881,5.9505,167.98,167.96,80.7188]
[1747604036084,76.78,168.04,167.96,80.7188]
[1747604036875,5.9505,167.97,167.96,80.7188]
[1747604038783,5.9505,167.97,167.96,74.94]
[1747604039286,76.78,168.04,167.96,74.94]
[1747604039479,76.7,168.08,167.96,74.94]
[1747604040176,76.88,168.07,167.96,74.94]
[1747604040385,76.88,168.07,167.97,76.84]
[1747604040584,5.9481,168.04,167.99,5.9497]
[1747604040977,5.9481,168.04,167.97,76.84]
[1747604041189,76.92,168.11,167.97,76.84]
[1747604041981,204.44270283,168.15,167.98,16.15058795]
[1747604042178,76.92,168.15,167.98,16.15058795]
[1747604042376,76.92,168.15,168.07,5.947]
[1747604042582,76.92,168.15,168.08,82.5818]
[1747604042783,76.9,168.19,168.08,82.5818]
[1747604043484,5.9445,168.15,168.08,82.5818]
[1747604043786,76.9,168.19,168.08,82.5818]
[1747604044186,77.16,168.22,168.11,5.9453]
[1747604044387,77.16,168.22,168.08,82.5818]
[1747604044689,5.9434,168.18,168.12,5.9452]
[1747604044890,5.9434,168.18,168.13,153.96]
[1747604045186,77.16,168.22,168.14,76.78]
[1747604045381,5.9432,168.18,168.14,76.78]
[1747604045776,77.16,168.22,168.14,76.78]
[1747604045981,5.9426,168.2,168.14,76.78]
[1747604046186,77.08,168.26,168.14,76.78]
[1747604046487,77.08,168.26,168.15,5.9439]
[1747604046687,77.08,168.26,168.16,2.0053]
[1747604047485,5.9416,168.23,168.17,5.9431]
[1747604047688,77.08,168.26,168.17,5.9431]
[1747604047987,76.94,168.27,168.16,2.0053]
[1747604048191,5.9417,168.23,168.18,5.943]
[1747604048386,5.9417,168.23,168.19,76.78]
[1747604048687,5.9411,168.24,168.19,76.78]
[1747604048881,76.94,168.27,168.19,82.7227]
[1747604049077,76.94,168.27,168.19,78.6816]
[1747604049487,76.94,168.27,168.19,80.6492]
[1747604050190,5.9413,168.24,168.19,86.5918]
[1747604050586,76.94,168.27,168.19,86.5918]
[1747604051378,540.10659794,168.32,168.19,86.5918]
[1747604051586,76.88,168.31,168.2,5.9424]
[1747604051784,76.84,168.31,168.2,5.9424]
[1747604051985,5.9406,168.26,168.21,5.942]
[1747604052190,76.84,168.31,168.19,80.6492]
[1747604052694,5.9401,168.27,168.22,5.9414]